Cogmind - Beta 13 @@@ ROGUE MODE // 2024.04.04 @ 19:46:43 Player: karlsu Result: Destroyed by as-07279 with Assembled Heavy Rifle Performance ------------- Evolutions (1) 500 Regions Visited (4) 800 Robots Destroyed (71) 355 Value Destroyed (1833) 1833 Prototype IDs (5) 100 Alien Tech Used (0) 0 Bonus (6) 6 TOTAL SCORE: 3594 Bonus ------- High Alert Combat Kills 6 Cogmind --------- Core Integrity 0/400 Matter 38/300 Energy 0/275 System Corruption 9% Temperature Cool (47) Movement Treading (157) Location -9/Exiles Parts ------- > --- POWER (1) -------- Deuterium Engine > --- PROPULSION (3) --- Armored Treads Advanced Treads > --- UTILITY (3) ------ Large Storage Unit Sensor Array Shield Generator > --- WEAPON (2) ------- Advanced Beam Cannon > --- INVENTORY (15) --- Advanced Treads Small Storage Unit Improved EM Shotgun Advanced Beam Cannon Rocket Launcher Peak State ------------ > --- POWER ------------ Heavy Ion Engine > --- PROPULSION ------- Advanced Treads Advanced Treads Advanced Treads > --- UTILITY ---------- Large Storage Unit Targeting Computer Hardened Light Armor Plating > --- WEAPON ----------- Advanced Beam Cannon Advanced Beam Cannon > --- INVENTORY -------- Improved Ion Engine Deuterium Engine Armored Treads Armored Treads Advanced Treads Small Storage Unit Sensor Array Signal Interpreter Light Armor Plating Light Armor Plating Hardened Light Armor Plating Improved EM Shotgun Improved EM Shotgun Particle Cannon Grenade Launcher [Rating: 25] Favorites ----------- Power Heavy Ion Engine Engine Heavy Ion Engine Power Core Nuclear Core Propulsion Light Treads Treads Light Treads Utility Large Storage Unit Device Heat Sink Storage Large Storage Unit Processor Targeting Computer Protection Hardened Light Armor Plating Weapon Assault Rifle Energy Gun Improved EM Shotgun Energy Cannon Light EM Pulse Cannon Ballistic Gun Assault Rifle Ballistic Cannon Improved Light Cannon Launcher Grenade Launcher Build | -11 -10 -9 -9 -9 ------- Run | Yrd Mat Mat Min Exi Slots Evolved 2 | . . 2 . . Power . | . . . . . Propulsion 1 | . . 1 . . Utility 1 | . . 1 . . Weapon . | . . . . . Parts Attached 61 | 6 5 33 14 3 Power 5 | 1 . 2 2 . Engine 4 | 1 . 2 1 . Core 1 | . . . 1 . Reactor . | . . . . . Propulsion 18 | 2 2 11 3 . Treads 18 | 2 2 11 3 . Leg . | . . . . . Wheel . | . . . . . Hover . | . . . . . Flight . | . . . . . Utility 17 | 1 2 8 5 1 Device 5 | . . 3 1 1 Storage 2 | 1 1 . . . Processor 2 | . 1 . 1 . Hackware . | . . . . . Protection 8 | . . 5 3 . Artifact . | . . . . . Weapon 21 | 2 1 12 4 2 Energy Gun 3 | . . 2 1 . Energy Cannon 8 | . . 6 1 1 Ballistic Gun 4 | 2 . 2 . . Ballistic Cannon 3 | . . 2 . 1 Launcher 3 | . 1 . 2 . Special Weapon . | . . . . . Impact Weapon . | . . . . . Slashing Weapon . | . . . . . Piercing Weapon . | . . . . . Special Melee Weapon . | . . . . . Unidentified Prototypes 3 | . . 3 . . Corrupted Parts 1 | . . 1 . . System Corruption 1 | . . 1 . . Parts Lost 17 | . . 5 11 1 Power 2 | . . . 2 . Propulsion 4 | . . 1 2 1 Utility 8 | . . 2 6 . Weapon 3 | . . 2 1 . Highest Loss Streak 10 | . . 2 10 1 To Critical Strikes 1 | . . . . 1 Average Slot Usage (%) 96 | . 95 96 93 96 Engine 11 | . 14 11 10 11 Treads 29 | . 27 30 32 31 Device 2 | . . 3 3 19 Storage 11 | . 14 11 11 11 Processor 7 | . 10 7 . . Protection 8 | . . 10 14 . Energy Cannon 5 | . . 8 1 11 Ballistic Gun 7 | . 14 6 . . Ballistic Cannon 5 | . . 5 11 8 Launcher 4 | . 13 . 6 2 Naked Turns . | . . . . . Heaviest Build 46 | 14 30 42 46 40 Greatest Support 66 | 40 40 66 62 62 Greatest Overweight (x) 9 | 2 9 1 . . Average Overweight (x) . | . . . . . Largest Inventory Capacity 15 | 8 15 15 15 15 Average Capacity 14 | 6 13 15 15 15 Most Carried 15 | 5 6 15 15 6 Average Carried 9 | . 3 11 12 5 Final Capacity 15 | 8 15 15 15 15 Final Carried 15 | . 5 15 6 5 Class Distribution -------------------- 98% | Mutant Dominant Class ---------------- Mutant | -10/Materials Mutant | -9/Materials Mutant | -9/Mines Mutant | -9/Exiles Resources | -11 -10 -9 -9 -9 ----------- Run | Yrd Mat Mat Min Exi Matter Collected 1339 | 233 152 695 259 . Remotely . | . . . . . Salvage Created 2120 | . 343 1568 209 . Parts 136 | . 35 89 12 . Haulers Intercepted 2 | . 1 1 . . Recyclers Shooed 2 | . . 2 . . Parts Field Recycled . | . . . . . Retrieved Matter . | . . . . . Parts Self-Destructed . | . . . . . Prevented . | . . . . . Kills | -11 -10 -9 -9 -9 ------- Run | Yrd Mat Mat Min Exi Combat Hostiles Destroyed 71 | . 14 30 27 . Melee 2 | . . 2 . . Guns 12 | . 5 6 1 . Cannons 27 | . . 18 9 . AOE 29 | . 9 3 17 . Classes Destroyed 11 | . 7 3 1 . Worker 5 | . 1 4 . . Builder 2 | . 1 1 . . Hauler 2 | . 1 1 . . Recycler 2 | . . 2 . . Operator 1 | . 1 . . . Watcher 6 | . 2 4 . . Swarmer 14 | . 6 4 4 . Grunt 29 | . 8 17 4 . Brawler 2 | . . 1 1 . Sentry 8 | . . 8 . . Assembled 18 | . . . 18 . Best Kill Streak 18 | . 5 7 18 . Combat Bots Only 18 | . 3 5 18 . Max Kills in Single Turn 4 | . 3 4 4 . Gunslinging . | . . . . . Exploded 4 | . 2 2 4 . Melee 1 | . . 1 . . Uniques/NPCs Destroyed . | . . . . . Combat | -11 -10 -9 -9 -9 -------- Run | Yrd Mat Mat Min Exi Hostile Shots Fired 378 | . 38 166 156 18 Missed 98 | . 15 49 29 5 Damage Taken 3892 | . 286 1254 2171 181 Core 424 | . 24 167 213 20 Absorbed by Shields 104 | . . . 39 65 Regen/Repaired (Parts) 149 | . 48 101 . . Core Remaining (%) 95 | 100 90 . . . Volleys Fired 157 | . 34 84 37 2 Largest 2 | . 2 2 2 2 Hottest 136 | . 50 136 84 107 Shots Fired 284 | . 49 163 67 5 Gun 98 | . 34 59 5 . Cannon 150 | . . 102 43 5 Launcher 36 | . 15 2 19 . Special . | . . . . . Kinetic 136 | . 34 56 43 3 Thermal 49 | . . 47 . 2 Explosive 36 | . 15 2 19 . Electromagnetic 63 | . . 58 5 . Robot Hit Streak 11 | . 10 11 6 1 Robot Miss Streak 4 | . 2 4 4 2 Penetration Max . | . . . . . Secondary Targets . | . . . . . Shots Hit Robots 156 | . 29 98 28 1 Core Hits 126 | . 31 52 42 1 Critical Kills . | . . . . . Critical Parts Destroyed . | . . . . . Critical Strikes . | . . . . . Melee Attacks . | . . . . . Impact . | . . . . . Slashing . | . . . . . Piercing . | . . . . . Sneak Attacks . | . . . . . Combat Hostiles . | . . . . . Follow-up Attacks . | . . . . . Damage Inflicted 5451 | . 1051 2455 1927 18 Guns 814 | . 266 483 65 . Cannons 1981 | . . 1486 477 18 Explosions 2627 | . 785 457 1385 . Melee . | . . . . . Ramming 29 | . . 29 . . Kinetic 1189 | . 266 428 477 18 Thermal 1082 | . . 1005 77 . Explosive 2164 | . 785 71 1308 . Electromagnetic 987 | . . 922 65 . Impact . | . . . . . Slashing . | . . . . . Piercing . | . . . . . Highest Corruption 9 | . . 1 9 9 Average Corruption 1 | . . 1 3 9 Corruption Purged . | . . . . . Corruption Blocked . | . . . . . Effects 40 | . . 23 14 3 Message Errors 14 | . . 7 6 1 Matter Fused 8 | . . 6 2 . Heat Flow Errors 6 | . . 3 2 1 Energy Discharges 3 | . . 1 2 . Data Loss (minor) 2 | . . 1 1 . Data Loss (major) 1 | . . 1 . . Misfires 4 | . . 3 . 1 Weapon Failures 2 | . . 1 1 . Overload Shots . | . . . . . Overflow Damage 106 | . 1 36 69 . Projectiles 36 | . . 36 . . Explosions 70 | . 1 . 69 . Melee . | . . . . . Knockbacks 6 | . . . 6 . Impact . | . . . . . Kinetic 6 | . . . 6 . Secondary . | . . . . . Self-Inflicted Damage 407 | . 42 . 365 . Shots 12 | . 2 . 10 . Rammed 11 | . . 11 . . Targets Rammed 12 | . . 12 . . Kicked . | . . . . . Crushed 1 | . . 1 . . Highest Temperature 540 | . 25 540 316 181 Average Temperature 113 | . 10 117 113 66 Received Heat Transfer 772 | . 108 348 288 28 Effects 13 | . . 11 2 . Shutdowns 4 | . . 4 . . Energy Bleed 6 | . . 4 2 . Interference 1 | . . 1 . . Short Circuit 1 | . . 1 . . Damage (minor) 1 | . . 1 . . Siege Activations . | . . . . . Robots Corrupted 2 | . . 2 . . Combat Hostiles 1 | . . 1 . . Parts Fried 6 | . . 6 . . Impact Corruptions . | . . . . . Robots Melted . | . . . . . Combat Hostiles . | . . . . . Parts Melted 1 | . . 1 . . Heat Transferred 1510 | . . 1410 100 . Parts Sabotaged . | . . . . . Parts Stolen . | . . . . . Parts Stripped . | . . . . . Power Chain Reactions 2 | . . 2 . . Alert | -11 -10 -9 -9 -9 ------- Run | Yrd Mat Mat Min Exi Peak Influence 489 | . 343 412 489 . Initial 128 | . . 59 128 . Average 243 | . 126 285 269 . Maximum Alert Level 2 | . 1 2 2 . Low Security (%) 29 | 100 61 21 4 . Level 1 65 | . 38 72 85 . Level 2 5 | . . 6 9 . Level 3 . | . . . . . Level 4 . | . . . . . Level 5 . | . . . . . High Security . | . . . . . Max Security . | . . . . . Squads Dispatched 10 | . 4 6 . . Investigation 6 | . 1 5 . . Extermination . | . . . . . Reinforcement 4 | . 3 1 . . Assault . | . . . . . Garrison . | . . . . . Intercept . | . . . . . Searches Triggered . | . . . . . Construction Impeded . | . . . . . Haulers Reinforced . | . . . . . Active Scanning Responses . | . . . . . Cargo Convoy Interrupts . | . . . . . Stealth | -11 -10 -9 -9 -9 --------- Run | Yrd Mat Mat Min Exi Distress Signals 2 | . 1 1 . . Communications Jammed . | . . . . . Distress Signals . | . . . . . Times Spotted 98 | . 21 40 29 8 Peak Tracking Total 19 | . 4 6 19 9 Tactical Retreats . | . . . . . Traps | -11 -10 -9 -9 -9 ------- Run | Yrd Mat Mat Min Exi Traps Triggered 2 | . . 2 . . Indirectly . | . . . . . Trap Hack Attempts . | . . . . . Triggered . | . . . . . Disarmed . | . . . . . Reprogrammed . | . . . . . Reused . | . . . . . Traps Extracted . | . . . . . Installed . | . . . . . Triggered . | . . . . . Machines | -11 -10 -9 -9 -9 ---------- Run | Yrd Mat Mat Min Exi Machines Disabled 8 | . . 3 5 . Max in Single Turn 2 | . . 1 2 . Machines Repaired . | . . . . . Machines Dismantled . | . . . . . Machines Sabotaged . | . . . . . Overloaded Fab Kills . | . . . . . Hacking | -11 -10 -9 -9 -9 --------- Run | Yrd Mat Mat Min Exi Machines Accessed 12 | . 4 8 . . Terminals 9 | . 3 6 . . Fabricators . | . . . . . Repair Stations 2 | . 1 1 . . Recycling Units . | . . . . . Scanalyzers 1 | . . 1 . . Garrison Access . | . . . . . Total Hacks 38 | . 15 23 . . Successful 21 | . 8 13 . . Failed 17 | . 7 10 . . Catastrophic 2 | . 1 1 . . Database Lockouts . | . . . . . Manual . | . . . . . Terminals 27 | . 10 17 . . Fabricators . | . . . . . Repair Stations 9 | . 5 4 . . Recycling Units . | . . . . . Scanalyzers 2 | . . 2 . . Garrison Access . | . . . . . Terminal Hacks 14 | . 4 10 . . Record 2 | . 1 1 . . Prototype ID Bank 1 | . . 1 . . Level Access Points 1 | . . 1 . . Emergency Access Points 2 | . . 2 . . Alert Level 1 | . 1 . . . Unreport Threat 1 | . . 1 . . Surveillance Status 1 | . . 1 . . Reinforcement Status 1 | . . 1 . . Recall Reinforcements 1 | . . 1 . . Hauler Manifests 1 | . 1 . . . Zone Layout 2 | . 1 1 . . Fabricator Hacks . | . . . . . Repair Station Hacks 7 | . 4 3 . . Scan Component 4 | . 2 2 . . Repair 3 | . 2 1 . . Recycling Unit Hacks . | . . . . . Scanalyzer . | . . . . . Garrison Access Hacks . | . . . . . Unauthorized Hacks . | . . . . . Terminals . | . . . . . Fabricators . | . . . . . Repair Stations . | . . . . . Recycling Units . | . . . . . Scanalyzers . | . . . . . Garrison Access . | . . . . . Data Cores Recovered 1 | . 1 . . . Used . | . . . . . Hacking Detections 11 | . 4 7 . . Full Trace Events 4 | . 2 2 . . Feedback Events . | . . . . . Feedback Blocked . | . . . . . Robot Schematics Acquired . | . . . . . Robots Built . | . . . . . Authchips . | . . . . . Time . | . . . . . Total Robot Build Rating . | . . . . . Part Schematics Acquired . | . . . . . Parts Built . | . . . . . Authchips . | . . . . . Time . | . . . . . Total Part Build Rating . | . . . . . Parts Repaired 3 | . 2 1 . . Time 65 | . 52 13 . . Parts Recycled . | . . . . . Recycled Matter . | . . . . . Retrieved Matter . | . . . . . Retrieved Components . | . . . . . Parts Scanalyzed . | . . . . . Part Schematics Acquired . | . . . . . Parts Damaged . | . . . . . Bothacking | -11 -10 -9 -9 -9 ------------ Run | Yrd Mat Mat Min Exi Used RIF Installer . | . . . . . Robots Hacked . | . . . . . Non-combat . | . . . . . Combat . | . . . . . Robot Hacks Applied . | . . . . . Relay Couplers Released . | . . . . . Fabnet Peak Effective % . | . . . . . Robots Rewired . | . . . . . Allies Hacked . | . . . . . Hacks Repelled . | . . . . . Allies | -11 -10 -9 -9 -9 -------- Run | Yrd Mat Mat Min Exi Total Allies . | . . . . . Largest Group . | . . . . . Highest-Rated Group . | . . . . . Highest-Rated Ally . | . . . . . Total Orders . | . . . . . Ally Attacks . | . . . . . Total Damage . | . . . . . Kills . | . . . . . Allies Corrupted . | . . . . . Allies Melted . | . . . . . Intel | -11 -10 -9 -9 -9 ------- Run | Yrd Mat Mat Min Exi Robot Analysis Total . | . . . . . Derelict Logs Recovered 2 | . . . 2 . Drone Launches . | . . . . . Drone Recoveries . | . . . . . Exploration | -11 -10 -9 -9 -9 ------------- Run | Yrd Mat Mat Min Exi Turns Passed 4775 | 72 1044 2990 576 93 Spaces Moved 2363 | 50 467 1573 223 50 Core 23 | 22 1 . . . Treads 2340 | 28 466 1573 223 50 Legs . | . . . . . Wheels . | . . . . . Hover . | . . . . . Flight . | . . . . . Fastest Speed 50 | 50 160 145 161 157 Average Speed 158 | 121 160 157 167 160 Slowest Speed 500 | 160 500 240 170 161 Overloaded Moves . | . . . . . Propulsion Burnouts . | . . . . . Robots Hopped . | . . . . . Cave-ins Triggered . | . . . . . Exploration Rate (%) 50 | 4 82 93 58 14 Regions Visited 4 Branch Regions 2 Pre-discovered Areas . | . . . . . Known Exits Taken . | . . . . . Unknown Exits Taken 4 | 1 1 1 1 . Scrap Searched 2 | . . . 2 . Spaces Dug . | . . . . . Terrain Destroyed 273 | . 61 41 171 . Melee . | . . . . . Projectile 2 | . . . 2 . AOE 271 | . 61 41 169 . Terrain Rammed . | . . . . . Walls Destroyed . | . . . . . Machines Disabled . | . . . . . Actions | -11 -10 -9 -9 -9 --------- Run | Yrd Mat Mat Min Exi Total 3100 | 61 710 1916 355 58 Wait 442 | . 197 161 81 3 Move 2359 | 49 466 1572 222 50 Hop . | . . . . . Pick Up 51 | 6 8 36 1 . Fast Attach . | . . . . . Attach 29 | 6 3 9 10 1 Detach . | . . . . . Swap 32 | . 2 24 4 2 Drop 18 | . . 18 . . Fire 157 | . 34 84 37 2 Melee . | . . . . . Ram . | . . . . . Kick . | . . . . . Crush 12 | . . 12 . . Escape Stasis . | . . . . . Rewire . | . . . . . Trap . | . . . . . Miscellaneous . | . . . . . Route ------- -11/Scrapyard -10/Materials (discovered 5 exits: *Mat x3 / [*Min x2]) -9/Materials (discovered 6 exits: *Mat x3 / [*Min x2] / [*Sto]) -9/Mines (discovered 3 exits: *Mat x2 / [*Exi]) -9/Exiles History --------- Turn | Location | Event 5 | -11/Scrapyard | Discovered new exit (range 14) 73 | -11/Scrapyard | Entered Materials 121 | -10/Materials | Discovered new exit (range 13) 286 | -10/Materials | Discovered new exit (range 3) 328 | -10/Materials | Build established: Mutant 357 | -10/Materials | Discovered new exit (range 13) 447 | -10/Materials | Discovered new exit (range 15) 1003 | -10/Materials | Discovered new exit (range 10) 1005 | -10/Materials | Repaired Lgt. Treads 1031 | -10/Materials | Repaired Lgt. Treads 1117 | -10/Materials | Entered another Materials area 1117 | -9/Materials | Evolved 2 slots: Propulsion x1, Utility x1 1335 | -9/Materials | Discovered new exit (range 14) 1363 | -9/Materials | Repaired Lgt. Treads 1494 | -9/Materials | Discovered new exit (range 8) 1508 | -9/Materials | Discovered new exit (range 8) 2380 | -9/Materials | Identified exit to Materials 4033 | -9/Materials | Discovered new exit (range 16) 4107 | -9/Materials | Entered Mines 4195 | -9/Mines | Learned Materials terminal intel 4227 | -9/Mines | Discovered exit to Materials (range 11) 4266 | -9/Mines | Learned 2 Materials zone layouts 4298 | -9/Mines | Received a Rocket Launcher from a helpful Derelict 4371 | -9/Mines | Discovered exit to Materials (range 13) 4453 | -9/Mines | Core integrity fell below 50% 4482 | -9/Mines | Assembled infested the area 4526 | -9/Mines | Core integrity fell below 20% 4561 | -9/Mines | Destroyed 18 combat bots 4565 | -9/Mines | Lost 10 parts (2p2n5u1w) 4627 | -9/Mines | Deemed a non-threat by the Exiles lab entrance 4627 | -9/Mines | Discovered new exit (range 5) 4683 | -9/Mines | Entered Exiles 4735 | -9/Exiles | Met 8R-AWN 4767 | -9/Exiles | Attacked by the Exiles 4776 | -9/Exiles | Destroyed by as-07279 with Assembled Heavy Rifle Last Messages --------------- Machine disabled. HV Slug penetrates Machine. Penetrated by HV Slug. HV Slug penetrates Machine. Penetrated by HV Slug. Critical hit (Destroy). Arm. Treads destroyed. HV Slug penetrates Machine. Penetrated by HV Slug. HV Slug penetrates Machine. Penetrated by HV Slug. HV Slug penetrates Machine. HV Slug penetrates Wall. Penetrated by HV Slug. HV Slug penetrates Machine. Imp. Light Cannon severed. Penetrated by HV Slug. HV Slug penetrates Wall. Penetrated by HV Slug. HV Slug penetrates Wall. Map ----- +----------------------------------------------------+ | ?????????????????????????????????????????????????? | | ?????????????????????????????????????????????????? | | ?????????????????????????????????????????????????? | | ?????????????????????????????????????????????????? | | ?????????????????????????????????????????????????? | | ?????????????????????????????????????????????????? | | ?????????????????????????????????????????????????? | | ?????????????????????????????????????????????????? | | ?????????????????????????????????????????????????? | | ?????????????????????????????????????????????????? | | ?????????????????????????????????????????????????? | | ?????????????????????????????????????????????????? | | ???????????????????????????????????????????????? ? | | ???????????????????????????????????????????????? | | ???????????????????????????????????????????????# | | ?????????????????????????????????????????????## | | ?????????????????????????????????????????????# | | ?????????????????????????#####???????????????# | | ????????????????????????##" #??????????????## | | ????????????????????????#" g #?????????????## | | ???????? ?????????????##" ##????????????# | | ???????? ?????????### ###????????### # | | ??????? ???????# ########## # | | ??????? ????## #""""## #? | | ?????? ### a * ## | | ?????? aaa@## * # | | ?????? aa ;### # | | ?????? a ###"""""#### | | ?????? # ##?#######??#### * | | ??????? ######??????????????##### | | ??????? #????????????????????????### | | ???????? #???????????????????????????### | | ???????? ""??????????????????????????????### | | ???????? "????????????????????????????????#" | | ?????????""""""?????????????????????????????????## | | ??????????##?????????????????????????????????????? | | ?????????????????????????????????????????????????? | | ?????????????????????????????????????????????????? | | ?????????????????????????????????????????????????? | | ?????????????????????????????????????????????????? | | ?????????????????????????????????????????????????? | | ?????????????????????????????????????????????????? | | ?????????????????????????????????????????????????? | | ?????????????????????????????????????????????????? | | ?????????????????????????????????????????????????? | | ?????????????????????????????????????????????????? | | ?????????????????????????????????????????????????? | | ?????????????????????????????????????????????????? | | ?????????????????????????????????????????????????? | | ?????????????????????????????????????????????????? | +----------------------------------------------------+ Best States ------------- Heat Dissipation 38 Energy Generation 14 Energy Capacity 280 Matter Stores 300 Matter Capacity 300 Sight Range 16 Robot Scan Range 14 Terrain Scan Density 10 Armor Coverage 300 Evasion (%) 50 Targeting Accuracy 5 Recoil Reduction 3 Item Schematics ----------------- None Robot Schematics ------------------ None Fabricated ------------ Nothing Alien Tech Used ----------------- None Achievements -------------- Exterminator Fist Fight I Survived The Infestation Let's See Who's Tougher Power Corrupts Challenges ------------ None Game ------ Seed ChainMicrowarpSlayer Manual? 0 Play Time 00:38:09 Cumulative 9.6 hours Start 2024.03.31 @ 16:36:06 End 2024.04.04 @ 19:46:43 Sessions 3 Manual Loads 0 Difficulty Rogue Special Mode None Game No. 16 Rogue 15 Adventurer 0 Explorer 1 Win Type - Total 0 Types 0/0/0/0/0/0/0/0/0 Lore% 3 Gallery% 10 Achievement% 10 Wizard Run 0 Options --------- Layout 1 ASCII 0 Keyboard 0 Movement Mouse Keybinds 0 Fullscreen 1 Font 32/SmallcapsGlow Map View 50x35 Zoom Use 0% Tactical HUD 0 Map Filters NONE Filters NONE Steam 1 RUN: d447bf50-71d7-40c3-93c3-21bc7554ba7e